Cogmind - Beta 14 @@@ ROGUE MODE // 2024.10.17 @ 00:57:53 Player: Fire Result: Destroyed by G-34 Mercenary with Small Laser Performance ------------- Evolutions (1) 500 Regions Visited (2) 400 Robots Destroyed (20) 100 Value Destroyed (532) 532 Prototype IDs (1) 20 Alien Tech Used (0) 0 Bonus (0) 0 TOTAL SCORE: 1552 Bonus ------- None Cogmind --------- Core Integrity 0/400 Matter 260/300 Energy 34/100 System Corruption 0% Temperature Cool (78) Movement Walking (120) Location -9/Materials Parts ------- > --- POWER (2) -------- (None) > --- PROPULSION (2) --- Aluminum Leg Improved Aluminum Leg > --- UTILITY (3) ------ Small Storage Unit Structural Scanner Machine Analyzer > --- WEAPON (2) ------- Spread Laser Flail > --- INVENTORY (8) ---- Improved Heat Sink Medium Matter Pod (100) Medium Matter Pod (100) Terrain Scan Processor Field Recycling Unit (0) Beam Rifle Advanced Beam Cannon Heavy Assault Rifle Peak State ------------ > --- POWER ------------ Light Ion Engine Light Ion Engine > --- PROPULSION ------- Backup Propulsion I Backup Propulsion I > --- UTILITY ---------- Improved Heat Sink Small Storage Unit Machine Analyzer > --- WEAPON ----------- Advanced Beam Cannon Flail > --- INVENTORY -------- Medium Matter Pod Medium Matter Pod Medium Matter Pod Structural Scanner Terrain Scan Processor Field Recycling Unit Flail [Rating: 17] Favorites ----------- Power Ion Engine Engine Ion Engine Propulsion Aluminum Leg Leg Aluminum Leg Wheel Armored Wheel Hover Unit Backup Propulsion I Utility Small Storage Unit Device Tractor Beam Storage Small Storage Unit Processor Machine Analyzer Weapon Flail Energy Gun Medium Laser Energy Cannon Advanced Beam Cannon Ballistic Gun Assault Rifle Special Weapon Mining Laser Impact Weapon Flail Build | -11 -10 -9 ------- Run | Yrd Mat Mat Slots Evolved 2 | . . 2 Power 1 | . . 1 Propulsion . | . . . Utility 1 | . . 1 Weapon . | . . . Parts Attached 39 | 6 11 22 Power 7 | 1 1 5 Engine 7 | 1 1 5 Core . | . . . Reactor . | . . . Propulsion 10 | 2 4 4 Treads . | . . . Leg 7 | 2 2 3 Wheel 1 | . . 1 Hover 2 | . 2 . Flight . | . . . Utility 8 | 1 2 5 Device 5 | . 1 4 Storage 2 | 1 . 1 Processor 1 | . 1 . Hackware . | . . . Protection . | . . . Artifact . | . . . Weapon 14 | 2 4 8 Energy Gun 6 | 1 3 2 Energy Cannon 3 | . . 3 Ballistic Gun 1 | 1 . . Ballistic Cannon . | . . . Launcher . | . . . Special Weapon 1 | . 1 . Impact Weapon 3 | . . 3 Slashing Weapon . | . . . Piercing Weapon . | . . . Special Melee Weapon . | . . . Unidentified Prototypes 1 | . . 1 Parts Lost 12 | . 6 6 Power 4 | . 1 3 Propulsion 4 | . 2 2 Utility 1 | . 1 . Weapon 3 | . 2 1 Highest Loss Streak 5 | . 5 4 To Critical Strikes . | . . . Average Slot Usage (%) 83 | . 83 82 Engine 11 | . 10 12 Leg 14 | . 22 7 Wheel 2 | . . 5 Hover 5 | . 3 7 Device 10 | . 9 11 Storage 12 | . 14 10 Processor 6 | . 1 11 Energy Gun 6 | . 12 2 Energy Cannon 3 | . . 7 Ballistic Gun 4 | . 8 . Impact Weapon 4 | . . 8 Peak Build Rating 17 | 6 7 17 Average Rating 9 | 4 6 13 On Entrance 4 | . 6 7 Naked Turns . | . . . Heaviest Build 18 | 14 15 18 Greatest Support 23 | 20 20 23 Greatest Overweight (x) 4 | 3 1 4 Average Overweight (x) . | . . . Largest Inventory Capacity 8 | 8 8 8 Average Capacity 7 | 7 8 7 Most Carried 8 | 5 8 8 Average Carried 5 | 1 4 6 Final Capacity 8 | 8 8 8 Final Carried 8 | 1 6 8 Class Distribution -------------------- 76% | Mutant 23% | Scavenger-Mutant Dominant Class ---------------- Mutant | -10/Materials Mutant | -9/Materials Resources | -11 -10 -9 ----------- Run | Yrd Mat Mat Matter Collected 607 | 234 179 194 Remotely 156 | . 156 . Salvage Created 595 | . 213 382 Parts 37 | . 15 22 Haulers Intercepted . | . . . Recyclers Shooed . | . . . Parts Field Recycled . | . . . Retrieved Matter . | . . . Parts Self-Destructed . | . . . Prevented . | . . . Kills | -11 -10 -9 ------- Run | Yrd Mat Mat Combat Hostiles Destroyed 18 | . 9 9 Melee 3 | . 2 1 Guns 8 | . 6 2 Cannons 7 | . 1 6 Classes Destroyed 5 | . 2 3 Worker 1 | . . 1 Tunneler 1 | . . 1 Swarmer 6 | . 3 3 Grunt 9 | . 6 3 Sentry 3 | . . 3 Best Kill Streak 4 | . 3 4 Combat Bots Only 3 | . 3 3 Max Kills in Single Turn 1 | . 1 1 Gunslinging . | . . . Exploded . | . . . Melee 1 | . 1 1 Uniques/NPCs Destroyed . | . . . Combat | -11 -10 -9 -------- Run | Yrd Mat Mat Hostile Shots Fired 244 | . 104 140 Missed 70 | . 34 36 Damage Taken 1966 | . 827 1139 Core 564 | . 158 406 Absorbed by Shields . | . . . Regen/Repaired (Parts) 90 | . . 90 Core Remaining (%) 68 | 100 36 . Volleys Fired 66 | . 23 43 Largest 2 | . 2 1 Hottest 130 | . 130 68 Shots Fired 86 | . 43 43 Gun 61 | . 40 21 Cannon 22 | . . 22 Launcher . | . . . Special 3 | . 3 . Kinetic 17 | . 17 . Thermal 53 | . 26 27 Explosive . | . . . Electromagnetic 16 | . . 16 Robot Hit Streak 8 | . 4 8 Robot Miss Streak 5 | . 4 5 Penetration Max . | . . . Secondary Targets . | . . . Shots Hit Robots 54 | . 21 33 Core Hits 41 | . 23 18 Critical Kills . | . . . Critical Parts Destroyed . | . . . Critical Strikes 1 | . 1 . Burn 1 | . 1 . Melee Attacks 15 | . . 15 Impact 15 | . . 15 Slashing . | . . . Piercing . | . . . Sneak Attacks . | . . . Combat Hostiles . | . . . Follow-up Attacks . | . . . Damage Inflicted 1066 | . 404 662 Guns 474 | . 235 239 Cannons 265 | . . 265 Explosions . | . . . Melee 152 | . . 152 Ramming 127 | . 121 6 Kinetic 109 | . 109 . Thermal 512 | . 174 338 Explosive . | . . . Electromagnetic 166 | . . 166 Impact 152 | . . 152 Slashing . | . . . Piercing . | . . . Highest Corruption 6 | . 6 . Average Corruption 5 | . 5 . Corruption Purged . | . . . Corruption Blocked . | . . . Effects 2 | . 2 . Heat Flow Errors 1 | . 1 . Data Loss (minor) 1 | . 1 . Overload Shots . | . . . Overflow Damage 29 | . . 29 Projectiles . | . . . Explosions . | . . . Melee 29 | . . 29 Knockbacks 1 | . 1 . Impact 1 | . 1 . Kinetic . | . . . Secondary . | . . . Self-Inflicted Damage 23 | . 20 3 Shots . | . . . Rammed 21 | . 20 1 Targets Rammed 65 | . 64 1 Kicked 44 | . 44 . Crushed . | . . . Highest Temperature 217 | . 217 106 Average Temperature 48 | . 50 39 Received Heat Transfer 699 | . 387 312 Siege Activations . | . . . Robots Corrupted . | . . . Combat Hostiles . | . . . Parts Fried . | . . . Impact Corruptions 1 | . . 1 Robots Melted . | . . . Combat Hostiles . | . . . Parts Melted . | . . . Heat Transferred 1167 | . 581 586 Parts Sabotaged . | . . . Parts Stolen . | . . . Parts Stripped . | . . . Power Chain Reactions . | . . . Alert | -11 -10 -9 ------- Run | Yrd Mat Mat Peak Influence 311 | . 225 311 Initial 12 | . . 12 Average 114 | . 93 144 Maximum Alert Level 1 | . 1 1 Low Security (%) 84 | 100 92 76 Level 1 15 | . 7 23 Level 2 . | . . . Level 3 . | . . . Level 4 . | . . . Level 5 . | . . . High Security . | . . . Max Security . | . . . Squads Dispatched 6 | . 3 3 Investigation 4 | . 2 2 Extermination . | . . . Reinforcement 2 | . 1 1 Assault . | . . . Garrison . | . . . Intercept . | . . . Searches Triggered . | . . . Construction Impeded . | . . . Haulers Reinforced . | . . . Active Scanning Responses . | . . . Cargo Convoy Interrupts . | . . . Stealth | -11 -10 -9 --------- Run | Yrd Mat Mat Distress Signals 1 | . . 1 Communications Jammed . | . . . Distress Signals . | . . . Times Spotted 31 | . 12 19 Peak Tracking Total 5 | . 4 5 Tactical Retreats 4 | . . 4 Traps | -11 -10 -9 ------- Run | Yrd Mat Mat Traps Triggered 2 | . 2 . Indirectly . | . . . Trap Hack Attempts . | . . . Triggered . | . . . Disarmed . | . . . Reprogrammed 6 | . 6 . Reused 1 | . 1 . Traps Extracted . | . . . Installed . | . . . Triggered 2 | . 1 1 Machines | -11 -10 -9 ---------- Run | Yrd Mat Mat Machines Disabled 1 | . 1 . Max in Single Turn 1 | . 1 . Machines Repaired . | . . . Machines Dismantled . | . . . Machines Sabotaged . | . . . Overloaded Fab Kills . | . . . Hacking | -11 -10 -9 --------- Run | Yrd Mat Mat Machines Accessed 9 | . 4 5 Terminals 5 | . 2 3 Fabricators . | . . . Repair Stations 3 | . 1 2 Recycling Units 1 | . 1 . Scanalyzers . | . . . Garrison Access . | . . . Total Hacks 37 | . 19 18 Successful 27 | . 14 13 Failed 10 | . 5 5 Catastrophic 2 | . . 2 Database Lockouts . | . . . Manual 1 | . . 1 Terminals 19 | . 8 11 Fabricators . | . . . Repair Stations 15 | . 8 7 Recycling Units 3 | . 3 . Scanalyzers . | . . . Garrison Access . | . . . Terminal Hacks 12 | . 6 6 Record 6 | . 3 3 Robot Analysis 1 | . 1 . Locate Traps 1 | . 1 . Reprogram Traps 1 | . 1 . Recall Investigation 1 | . . 1 Registered Components 1 | . . 1 Zone Layout 1 | . . 1 Fabricator Hacks . | . . . Repair Station Hacks 14 | . 7 7 Scan Component 7 | . 3 4 Repair 6 | . 3 3 Refit 1 | . 1 . Recycling Unit Hacks 1 | . 1 . Report Inventory 1 | . 1 . Scanalyzer . | . . . Garrison Access Hacks . | . . . Unauthorized Hacks . | . . . Terminals . | . . . Fabricators . | . . . Repair Stations . | . . . Recycling Units . | . . . Scanalyzers . | . . . Garrison Access . | . . . Data Cores Recovered . | . . . Used . | . . . Hacking Detections 8 | . 3 5 Full Trace Events 3 | . 1 2 Feedback Events . | . . . Feedback Blocked . | . . . Robot Schematics Acquired . | . . . Robots Built . | . . . Authchips . | . . . Time . | . . . Total Robot Build Rating . | . . . Part Schematics Acquired . | . . . Parts Built . | . . . Authchips . | . . . Time . | . . . Total Part Build Rating . | . . . Parts Repaired 5 | . 2 3 Time 156 | . 78 78 Parts Recycled . | . . . Recycled Matter . | . . . Retrieved Matter . | . . . Retrieved Components . | . . . Parts Scanalyzed . | . . . Part Schematics Acquired . | . . . Parts Damaged . | . . . Bothacking | -11 -10 -9 ------------ Run | Yrd Mat Mat Used RIF Installer . | . . . Robots Hacked . | . . . Non-combat . | . . . Combat . | . . . Robot Hacks Applied . | . . . Relay Couplers Released . | . . . Fabnet Peak Effective % . | . . . Robots Rewired . | . . . Allies Hacked . | . . . Hacks Repelled . | . . . Allies | -11 -10 -9 -------- Run | Yrd Mat Mat Total Allies . | . . . Largest Group . | . . . Highest-Rated Group . | . . . Highest-Rated Ally . | . . . Total Orders . | . . . Ally Attacks . | . . . Total Damage . | . . . Kills . | . . . Allies Corrupted . | . . . Allies Melted . | . . . Intel | -11 -10 -9 ------- Run | Yrd Mat Mat Robot Analysis Total 1 | . 1 . Derelict Logs Recovered . | . . . Drone Launches . | . . . Drone Recoveries . | . . . Exploration | -11 -10 -9 ------------- Run | Yrd Mat Mat Turns Passed 1139 | 61 509 569 Spaces Moved 645 | 47 293 305 Core 26 | 17 7 2 Treads . | . . . Legs 386 | 30 225 131 Wheels 15 | . . 15 Hover 218 | . 61 157 Flight . | . . . Fastest Speed 50 | 50 76 76 Average Speed 118 | 104 110 128 Slowest Speed 250 | 200 120 250 Overloaded Moves . | . . . Propulsion Burnouts . | . . . Robots Hopped . | . . . Cave-ins Triggered . | . . . Exploration Rate (%) 27 | 3 47 33 Regions Visited 2 Branch Regions . Pre-discovered Areas . | . . . Known Exits Taken . | . . . Unknown Exits Taken 2 | 1 1 . Scrap Searched . | . . . Spaces Dug 4 | . . 4 Terrain Destroyed 5 | . 1 4 Melee 4 | . . 4 Projectile 1 | . 1 . AOE . | . . . Terrain Rammed . | . . . Walls Destroyed . | . . . Machines Disabled . | . . . Actions | -11 -10 -9 --------- Run | Yrd Mat Mat Total 895 | 59 421 415 Wait 17 | . 10 7 Move 643 | 46 292 305 Hop . | . . . Pick Up 39 | 7 16 16 Fast Attach 3 | . 1 2 Attach 24 | 6 7 11 Detach . | . . . Swap 12 | . 3 9 Drop 11 | . 5 6 Fire 66 | . 23 43 Melee 15 | . . 15 Ram 21 | . 20 1 Kick 44 | . 44 . Crush . | . . . Escape Stasis . | . . . Rewire . | . . . Trap . | . . . Miscellaneous . | . . . Route ------- -11/Scrapyard -10/Materials (discovered 3 exits: *Mat x2 / [*Min]) -9/Materials History --------- Turn | Location | Event 7 | -11/Scrapyard | Discovered new exit (range 14) 62 | -11/Scrapyard | Entered Materials 255 | -10/Materials | Discovered new exit (range 13) 280 | -10/Materials | Discovered new exit (range 16) 306 | -10/Materials | Build established: Mutant 377 | -10/Materials | Repaired Ion Engine 377 | -10/Materials | Repaired Assault Rifle 483 | -10/Materials | Lost 5 parts (1p1n1u2w) 487 | -10/Materials | Core integrity fell below 50% 557 | -10/Materials | Discovered new exit (range 13) 571 | -10/Materials | Entered another Materials area 571 | -9/Materials | Evolved 2 slots: Power x1, Utility x1 582 | -9/Materials | Repaired Ion Engine 608 | -9/Materials | Repaired Sml. Storage Unit? 810 | -9/Materials | Core integrity fell below 50% 827 | -9/Materials | Lost 4 parts (2p2n) 841 | -9/Materials | Core integrity fell below 20% 1137 | -9/Materials | Repaired Ion Engine 1140 | -9/Materials | Destroyed by G-34 Mercenary with Small Laser Last Messages --------------- >>Scan(Ion Engine) Scanning Ion Engine... Ready to Repair: Ion Engine Rating: 1 Time: 26 >>Repair Repairing Ion Engine... ETC: 26 Connecting with Repair Station... >>Scan(Imp. Heat Sink) Scanning Imp. Heat Sink... Ready to Repair: Imp. Heat Sink Rating: 3 Time: 38 ALERT: Suspicious activity at Repair Station M002. Dispatching Investigation squad. G-34 Mercenary destroyed. Repair station completes Ion Engine repairs. Map ----- +----------------------------------------------------+ | | | | | | | | | | | | | | | | | | | | | | | | | | | | | ????????????????????????????????????????????? | | ????????????????????????????????????????????? | | ?????????????????######?????????????????????? | | ?????????????????######?????????????????????? | | ????????????????? ?????????????????????? | | ??????????????????? ??????????????????????? | | ???????????????## ??????????? | | ???????????????#####+######+######??????????? | | ???????????????## # ##??????????? | | ???????????????## %*g""" # !##########??? | | ???????????????## [ "R" # ##########??? | | ???????????????## @"*" + # ##??? | | ???????????????## g # # """"" ##??? | | ???????????????## """"" # # """"" ##??? | | ???????????????## """"" ######## """"" # ??? | | ???????????????## """"" ######## """"" # ??? | | ???????????????## ##????## """"" + ??? | | ???????????????############????## """"" # ??? | | ???????????????############????## """"" # ??? | | ???????????????????????????????## ##??? | | ???????????????????????????????## ##??? | | ????????????????##########?????## ## ?? | | ????????????????##########?????########### ?? | | ????????????????## ##??####### # ?? | | ????????????????## [| ##??####### # ?? | | ????????????????## | ##??## # """ # ?? | | ????????????????## ##??## ""# """ # ?? | | ????????????????## ##??## ""#= """ # ? | | ????????????????## ##??## T"# # ? | | ?????????????????####+########] ""#+##+### | | ?????????????????## ###### ""# | | ?????????????????## + # | | ?????????????????## # # | | ?????????????????## + !### #####+# | | ?????????????????## #############/### | | ?????????????????####=############ ????? | +----------------------------------------------------+ Best States ------------- Heat Dissipation 42 Energy Generation 15 Energy Capacity 275 Matter Stores 300 Matter Capacity 300 Sight Range 16 Terrain Scan Density 10 Evasion (%) 55 Item Schematics ----------------- None Robot Schematics ------------------ None Fabricated ------------ Nothing Alien Tech Used ----------------- None Achievements -------------- Fist Fight Use The Force Challenges ------------ None Game ------ Seed FactoryPotentialTorch Manual? 0 Play Time 00:29:05 Cumulative 4.1 hours Start 2024.10.17 @ 00:26:17 End 2024.10.17 @ 00:57:53 Sessions 1 Manual Loads 0 Difficulty Rogue Special Mode None Game No. 7 Rogue 7 Adventurer 0 Explorer 0 Win Type - Total 0 Types 0/0/0/0/0/0/0/0/0 Lore% 6 Gallery% 6 Achievement% 7 Wizard Run 0 Options --------- Layout 1 ASCII 0 Keyboard 0 Movement Mouse Keybinds 0 Fullscreen 2 Font 24/Smallcaps Map View 50x35 Zoom Use 0% Tactical HUD 0 Map Filters NONE Filters NONE Steam 1 RUN: f09dd7f2-ae51-4d06-b93d-1c80cae9c04a